[Event "21th Rochefort Chess Festival - Masters"]
[Site "Rochefort, France"]
[Date "2023.02.16"]
[Round "8.5"]
[White "Nikolov, Momchil"]
[Black "Lamaze, Simon"]
[Result "1-0"]
[TimeControl "1h30 + [30'']"]
[WhiteElo "2480"]
[BlackElo "2372"]

1. d4 {[%clk 01:28:44]} {[%emt 00:02:14]} Nf6 {[%clk 01:30:07]} {[%emt
00:00:53]} 2. c4 {[%clk 01:29:05]} {[%emt 00:00:10]} e6 {[%clk 01:30:13]}
{[%emt 00:00:24]} 3. Nf3 {[%clk 01:29:18]} {[%emt 00:00:16]} b6 {[%clk
01:30:28]} {[%emt 00:00:16]} 4. g3 {[%clk 01:29:38]} {[%emt 00:00:09]} Ba6
{[%clk 01:30:24]} {[%emt 00:00:35]} 5. b3 {[%clk 01:29:58]} {[%emt 00:00:09]}
Bb4+ {[%clk 01:30:38]} {[%emt 00:00:17]} 6. Bd2 {[%clk 01:30:18]} {[%emt
00:00:09]} Be7 {[%clk 01:31:04]} {[%emt 00:00:05]} 7. Nc3 {[%clk 01:30:15]}
{[%emt 00:00:32]} d5 {[%clk 01:30:57]} {[%emt 00:00:37]} 8. cxd5 {[%clk
01:29:39]} {[%emt 00:01:06]} exd5 {[%clk 01:31:13]} {[%emt 00:00:15]} 9. Bg2
{[%clk 01:29:21]} {[%emt 00:00:47]} O-O {[%clk 01:31:22]} {[%emt 00:00:22]} 10.
O-O {[%clk 01:28:14]} {[%emt 00:01:36]} Re8 {[%clk 01:31:39]} {[%emt 00:00:14]}
11. Ne5 {[%clk 01:27:46]} {[%emt 00:00:57]} Bb7 {[%clk 01:31:44]} {[%emt
00:00:26]} 12. Rc1 {[%clk 01:27:51]} {[%emt 00:00:24]} Nbd7 {[%clk 01:28:58]}
{[%emt 00:03:17]} 13. Rc2 {[%clk 01:20:01]} {[%emt 00:08:19]} a6 {[%clk
01:18:18]} {[%emt 00:11:10]} 14. Bc1 {[%clk 01:19:34]} {[%emt 00:00:56]} Bd6
{[%clk 01:14:57]} {[%emt 00:03:52]} 15. Nd3 {[%clk 01:06:08]} {[%emt 00:13:56]}
Qe7 {[%clk 01:08:52]} {[%emt 00:06:34]} 16. Bg5 {[%clk 01:00:16]} {[%emt
00:06:22]} Qe6 {[%clk 01:04:23]} {[%emt 00:05:00]} 17. Bf4 {[%clk 00:56:09]}
{[%emt 00:04:36]} Bxf4 {[%clk 00:59:03]} {[%emt 00:05:51]} 18. Nxf4 {[%clk
00:55:31]} {[%emt 00:01:07]} Qd6 {[%clk 00:59:27]} {[%emt 00:00:07]} 19. e3
{[%clk 00:54:50]} {[%emt 00:01:10]} c6 {[%clk 00:57:06]} {[%emt 00:02:51]} 20.
Qd3 {[%clk 00:51:04]} {[%emt 00:04:15]} Re7 {[%clk 00:52:59]} {[%emt 00:04:39]}
21. Rfc1 {[%clk 00:47:59]} {[%emt 00:03:35]} Rae8 {[%clk 00:50:20]} {[%emt
00:03:09]} 22. Na4 {[%clk 00:43:51]} {[%emt 00:04:37]} h5 {[%clk 00:36:22]}
{[%emt 00:14:29]} 23. h4 {[%clk 00:40:18]} {[%emt 00:04:02]} g6 {[%clk
00:36:41]} {[%emt 00:00:13]} 24. Nc3 {[%clk 00:34:58]} {[%emt 00:05:49]} Kg7
{[%clk 00:34:49]} {[%emt 00:02:22]} 25. Nh3 {[%clk 00:34:45]} {[%emt 00:00:43]}
Ng4 {[%clk 00:26:09]} {[%emt 00:09:11]} 26. e4 {[%clk 00:29:10]} {[%emt
00:06:03]} dxe4 {[%clk 00:25:39]} {[%emt 00:01:01]} 27. Nxe4 {[%clk 00:29:28]}
{[%emt 00:00:12]} Qb4 {[%clk 00:23:54]} {[%emt 00:02:16]} 28. Nd2 {[%clk
00:23:21]} {[%emt 00:06:37]} Re1+ {[%clk 00:22:22]} {[%emt 00:02:02]} 29. Nf1
{[%clk 00:17:07]} {[%emt 00:06:44]} Rxc1 {[%clk 00:20:09]} {[%emt 00:02:44]} 30.
Rxc1 {[%clk 00:17:32]} {[%emt 00:00:05]} Re6 {[%clk 00:18:49]} {[%emt
00:01:50]} 31. Nf4 {[%clk 00:11:36]} {[%emt 00:06:25]} Rd6 {[%clk 00:18:47]}
{[%emt 00:00:33]} 32. Ne2 {[%clk 00:11:24]} {[%emt 00:00:40]} Ndf6 {[%clk
00:15:35]} {[%emt 00:03:43]} 33. Ne3 {[%clk 00:08:44]} {[%emt 00:03:09]} Bc8
{[%clk 00:10:38]} {[%emt 00:05:27]} 34. a3 {[%clk 00:06:47]} {[%emt 00:02:27]}
Qxa3 {[%clk 00:08:26]} {[%emt 00:02:43]} 35. Nc4 {[%clk 00:06:29]} {[%emt
00:00:48]} Qb4 {[%clk 00:08:40]} {[%emt 00:00:16]} 36. Nxd6 {[%clk 00:06:31]}
{[%emt 00:00:27]} Qxd6 {[%clk 00:09:09]} {[%emt 00:00:02]} 37. Rxc6 {[%clk
00:06:27]} {[%emt 00:00:34]} Qd8 {[%clk 00:09:37]} {[%emt 00:00:01]} 38. Rc1
{[%clk 00:03:46]} {[%emt 00:03:10]} Be6 {[%clk 00:08:31]} {[%emt 00:01:37]} 39.
d5 {[%clk 00:01:53]} {[%emt 00:02:23]} Bxd5 {[%clk 00:08:48]} {[%emt 00:00:13]}
40. Nf4 {[%clk 00:01:37]} {[%emt 00:00:45]} 1-0

[Event "21th Rochefort Chess Festival - Masters"]
[Site "Rochefort, France"]
[Date "2023.02.16"]
[Round "8.4"]
[White "Sasikiran, Krishnan"]
[Black "Girel, Joseph"]
[Result "1/2-1/2"]
[TimeControl "1h30 + [30'']"]
[WhiteElo "2619"]
[BlackElo "2387"]

1. e4 {[%clk 01:28:42]} {[%emt 00:02:06]} c5 {[%clk 01:28:58]} {[%emt
00:02:12]} 2. Nf3 {[%clk 01:28:50]} {[%emt 00:00:22]} Nc6 {[%clk 01:28:56]}
{[%emt 00:00:31]} 3. Bb5 {[%clk 01:28:14]} {[%emt 00:01:07]} e6 {[%clk
01:28:31]} {[%emt 00:00:54]} 4. O-O {[%clk 01:26:40]} {[%emt 00:02:05]} Nge7
{[%clk 01:28:44]} {[%emt 00:00:17]} 5. c3 {[%clk 01:26:37]} {[%emt 00:00:34]}
a6 {[%clk 01:28:20]} {[%emt 00:00:54]} 6. Ba4 {[%clk 01:26:52]} {[%emt
00:00:15]} b5 {[%clk 01:27:39]} {[%emt 00:01:10]} 7. Bc2 {[%clk 01:27:15]}
{[%emt 00:00:07]} Bb7 {[%clk 01:26:55]} {[%emt 00:01:14]} 8. d4 {[%clk
01:24:28]} {[%emt 00:03:17]} cxd4 {[%clk 01:26:07]} {[%emt 00:01:18]} 9. Nxd4
{[%clk 01:23:58]} {[%emt 00:01:00]} Ng6 {[%clk 01:22:12]} {[%emt 00:04:24]} 10.
Nd2 {[%clk 01:17:40]} {[%emt 00:06:49]} Be7 {[%clk 01:15:06]} {[%emt 00:07:36]}
11. Re1 {[%clk 01:03:54]} {[%emt 00:14:17]} O-O {[%clk 01:11:09]} {[%emt
00:04:26]} 12. N2f3 {[%clk 01:00:01]} {[%emt 00:04:23]} Rc8 {[%clk 01:06:46]}
{[%emt 00:04:53]} 13. a3 {[%clk 00:56:54]} {[%emt 00:03:38]} Qc7 {[%clk
01:02:36]} {[%emt 00:04:40]} 14. Nxc6 {[%clk 00:51:38]} {[%emt 00:05:46]} dxc6
{[%clk 00:54:57]} {[%emt 00:08:08]} 15. a4 {[%clk 00:45:35]} {[%emt 00:06:34]}
c5 {[%clk 00:45:28]} {[%emt 00:09:59]} 16. axb5 {[%clk 00:42:24]} {[%emt
00:03:41]} axb5 {[%clk 00:45:45]} {[%emt 00:00:13]} 17. Qe2 {[%clk 00:41:52]}
{[%emt 00:01:01]} Bc6 {[%clk 00:42:04]} {[%emt 00:04:11]} 18. g3 {[%clk
00:39:23]} {[%emt 00:02:59]} Ra8 {[%clk 00:31:47]} {[%emt 00:10:47]} 19. Rxa8
{[%clk 00:33:26]} {[%emt 00:06:28]} Rxa8 {[%clk 00:31:54]} {[%emt 00:00:22]} 20.
h4 {[%clk 00:33:40]} {[%emt 00:00:16]} e5 {[%clk 00:25:53]} {[%emt 00:06:31]}
21. Nh2 {[%clk 00:30:33]} {[%emt 00:03:37]} Nf8 {[%clk 00:23:55]} {[%emt
00:02:28]} 22. Ng4 {[%clk 00:22:43]} {[%emt 00:08:20]} c4 {[%clk 00:19:53]}
{[%emt 00:04:32]} 23. Rd1 {[%clk 00:16:05]} {[%emt 00:07:08]} Nd7 {[%clk
00:17:31]} {[%emt 00:02:53]} 24. Ne3 {[%clk 00:14:51]} {[%emt 00:01:44]} Ra1
{[%clk 00:15:03]} {[%emt 00:02:57]} 25. Kh2 {[%clk 00:11:44]} {[%emt 00:03:37]}
g6 {[%clk 00:14:33]} {[%emt 00:01:00]} 26. f3 {[%clk 00:10:31]} {[%emt
00:01:44]} Nf6 {[%clk 00:12:25]} {[%emt 00:02:37]} 27. b3 {[%clk 00:08:54]}
{[%emt 00:02:08]} cxb3 {[%clk 00:11:35]} {[%emt 00:01:20]} 28. Bxb3 {[%clk
00:09:12]} {[%emt 00:00:12]} Ba3 {[%clk 00:10:51]} {[%emt 00:01:14]} 29. Bd2
{[%clk 00:07:05]} {[%emt 00:02:38]} Rxd1 {[%clk 00:10:54]} {[%emt 00:00:26]} 30.
Nxd1 {[%clk 00:06:53]} {[%emt 00:00:42]} Bc5 {[%clk 00:09:54]} {[%emt
00:01:30]} 31. Be3 {[%clk 00:06:19]} {[%emt 00:01:04]} Qd6 {[%clk 00:08:43]}
{[%emt 00:01:41]} 32. Qd2 {[%clk 00:04:37]} {[%emt 00:02:12]} Qxd2+ {[%clk
00:04:36]} {[%emt 00:04:37]} 33. Bxd2 {[%clk 00:05:04]} {[%emt 00:00:03]} Nd7
{[%clk 00:04:53]} {[%emt 00:00:14]} 34. Nb2 {[%clk 00:04:14]} {[%emt 00:01:20]}
Bd6 {[%clk 00:04:47]} {[%emt 00:00:36]} 35. c4 {[%clk 00:02:49]} {[%emt
00:01:54]} Nb6 {[%clk 00:04:17]} {[%emt 00:01:00]} 36. Be3 {[%clk 00:02:19]}
{[%emt 00:01:01]} Nxc4 {[%clk 00:04:39]} {[%emt 00:00:08]} 37. Nxc4 {[%clk
00:01:36]} {[%emt 00:01:14]} bxc4 {[%clk 00:05:01]} {[%emt 00:00:07]} 38. Bxc4
{[%clk 00:02:04]} {[%emt 00:00:03]} Kg7 {[%clk 00:05:22]} {[%emt 00:00:08]}
1/2-1/2

[Event "21th Rochefort Chess Festival - Masters"]
[Site "Rochefort, France"]
[Date "2023.02.16"]
[Round "8.2"]
[White "Harsha Bharathakoti"]
[Black "Larkin, Vladyslav"]
[Result "1/2-1/2"]
[TimeControl "1h30 + [30'']"]
[WhiteElo "2599"]
[BlackElo "2441"]

1. Nf3 {[%clk 01:28:40]} {[%emt 00:02:19]} d5 {[%clk 01:27:21]} {[%emt
00:03:40]} 2. g3 {[%clk 01:27:44]} {[%emt 00:01:25]} c6 {[%clk 01:27:33]}
{[%emt 00:00:19]} 3. Bg2 {[%clk 01:27:38]} {[%emt 00:00:35]} Nf6 {[%clk
01:27:27]} {[%emt 00:00:36]} 4. c4 {[%clk 01:25:09]} {[%emt 00:02:59]} dxc4
{[%clk 01:24:30]} {[%emt 00:03:27]} 5. O-O {[%clk 01:23:16]} {[%emt 00:02:23]}
g6 {[%clk 01:22:42]} {[%emt 00:02:18]} 6. Na3 {[%clk 01:18:42]} {[%emt
00:05:04]} Nbd7 {[%clk 01:14:37]} {[%emt 00:08:34]} 7. Nxc4 {[%clk 01:18:25]}
{[%emt 00:00:47]} Nb6 {[%clk 01:14:43]} {[%emt 00:00:25]} 8. b3 {[%clk
01:10:35]} {[%emt 00:08:20]} Bg7 {[%clk 01:15:00]} {[%emt 00:00:12]} 9. Bb2
{[%clk 01:10:37]} {[%emt 00:00:28]} O-O {[%clk 01:15:03]} {[%emt 00:00:28]} 10.
d3 {[%clk 01:09:19]} {[%emt 00:01:48]} a5 {[%clk 01:06:58]} {[%emt 00:08:35]}
11. Rc1 {[%clk 00:41:53]} {[%emt 00:27:56]} a4 {[%clk 01:01:47]} {[%emt
00:05:42]} 12. Bd4 {[%clk 00:35:47]} {[%emt 00:06:35]} Nfd5 {[%clk 00:56:24]}
{[%emt 00:05:53]} 13. Nxb6 {[%clk 00:32:06]} {[%emt 00:04:12]} Nxb6 {[%clk
00:56:38]} {[%emt 00:00:16]} 14. Bxg7 {[%clk 00:32:28]} {[%emt 00:00:08]} Kxg7
{[%clk 00:57:02]} {[%emt 00:00:05]} 15. b4 {[%clk 00:32:54]} {[%emt 00:00:04]}
a3 {[%clk 00:53:48]} {[%emt 00:03:44]} 16. Qd2 {[%clk 00:29:32]} {[%emt
00:03:52]} Qd6 {[%clk 00:50:14]} {[%emt 00:04:04]} 17. Ng5 {[%clk 00:26:55]}
{[%emt 00:03:07]} Rd8 {[%clk 00:48:47]} {[%emt 00:01:56]} 18. Ne4 {[%clk
00:25:23]} {[%emt 00:02:02]} Qd4 {[%clk 00:48:59]} {[%emt 00:00:18]} 19. Nc5
{[%clk 00:24:21]} {[%emt 00:01:32]} Nd5 {[%clk 00:41:15]} {[%emt 00:08:14]} 20.
Rb1 {[%clk 00:17:51]} {[%emt 00:07:00]} Qc3 {[%clk 00:38:10]} {[%emt 00:03:34]}
21. Rfd1 {[%clk 00:10:43]} {[%emt 00:07:37]} Qxd2 {[%clk 00:37:27]} {[%emt
00:01:15]} 22. Rxd2 {[%clk 00:11:09]} {[%emt 00:00:04]} Nc3 {[%clk 00:37:31]}
{[%emt 00:00:25]} 23. Rc1 {[%clk 00:10:39]} {[%emt 00:01:00]} Nb5 {[%clk
00:32:36]} {[%emt 00:05:25]} 24. e3 {[%clk 00:10:56]} {[%emt 00:00:13]} Nc7
{[%clk 00:29:46]} {[%emt 00:03:20]} 25. Rb1 {[%clk 00:03:54]} {[%emt 00:07:32]}
Nd5 {[%clk 00:16:59]} {[%emt 00:13:17]} 26. Rc2 {[%clk 00:03:35]} {[%emt
00:00:49]} b6 {[%clk 00:16:37]} {[%emt 00:00:52]} 27. Ne4 {[%clk 00:04:00]}
{[%emt 00:00:05]} Ra4 {[%clk 00:16:12]} {[%emt 00:00:55]} 28. Rxc6 {[%clk
00:01:15]} {[%emt 00:03:15]} Rxb4 {[%clk 00:16:24]} {[%emt 00:00:18]} 29. Rxb4
{[%clk 00:00:59]} {[%emt 00:00:47]} Nxb4 {[%clk 00:16:48]} {[%emt 00:00:06]} 30.
Rc3 {[%clk 00:01:28]} {[%emt 00:00:01]} Nxd3 {[%clk 00:15:53]} {[%emt
00:01:25]} 31. Rxa3 {[%clk 00:01:54]} {[%emt 00:00:04]} Ne1 {[%clk 00:16:18]}
{[%emt 00:00:04]} 32. Nc3 {[%clk 00:01:54]} {[%emt 00:00:31]} Rd2 {[%clk
00:14:12]} {[%emt 00:02:36]} 33. Be4 {[%clk 00:01:15]} {[%emt 00:01:09]} Bh3
{[%clk 00:14:18]} {[%emt 00:00:24]} 34. Rb3 {[%clk 00:00:55]} {[%emt 00:00:50]}
f5 {[%clk 00:14:27]} {[%emt 00:00:21]} 35. Rb1 {[%clk 00:01:08]} {[%emt
00:00:17]} Nd3 {[%clk 00:14:29]} {[%emt 00:00:28]} 36. Bxd3 {[%clk 00:01:34]}
{[%emt 00:00:04]} Rxd3 {[%clk 00:14:55]} {[%emt 00:00:04]} 37. Na4 {[%clk
00:01:18]} {[%emt 00:00:46]} Ra3 {[%clk 00:12:08]} {[%emt 00:03:16]} 1/2-1/2

[Event "21th Rochefort Chess Festival - Masters"]
[Site "Rochefort, France"]
[Date "2023.02.16"]
[Round "8.1"]
[White "Deshpande, Aniruddha"]
[Black "Ghosh, Diptayan"]
[Result "0-1"]
[TimeControl "1h30 + [30'']"]
[WhiteElo "2204"]
[BlackElo "2553"]

1. d4 {[%clk 01:27:36]} {[%emt 00:03:22]} d5 {[%clk 01:24:53]} {[%emt
00:06:08]} 2. c4 {[%clk 01:27:57]} {[%emt 00:00:10]} c6 {[%clk 01:25:20]}
{[%emt 00:00:04]} 3. Nf3 {[%clk 01:28:01]} {[%emt 00:00:25]} Nf6 {[%clk
01:25:45]} {[%emt 00:00:05]} 4. Qb3 {[%clk 01:28:19]} {[%emt 00:00:11]} dxc4
{[%clk 01:25:58]} {[%emt 00:00:17]} 5. Qxc4 {[%clk 01:28:42]} {[%emt 00:00:07]}
Bf5 {[%clk 01:26:24]} {[%emt 00:00:04]} 6. g3 {[%clk 01:28:45]} {[%emt
00:00:26]} e6 {[%clk 01:26:50]} {[%emt 00:00:05]} 7. Bg2 {[%clk 01:28:53]}
{[%emt 00:00:22]} Be7 {[%clk 01:27:14]} {[%emt 00:00:07]} 8. O-O {[%clk
01:29:06]} {[%emt 00:00:16]} O-O {[%clk 01:27:39]} {[%emt 00:00:05]} 9. e3
{[%clk 01:28:39]} {[%emt 00:00:57]} Nbd7 {[%clk 01:28:04]} {[%emt 00:00:05]} 10.
Qe2 {[%clk 01:27:24]} {[%emt 00:01:44]} Qc7 {[%clk 01:28:26]} {[%emt 00:00:09]}
11. Nc3 {[%clk 01:19:11]} {[%emt 00:08:42]} e5 {[%clk 01:28:25]} {[%emt
00:00:31]} 12. e4 {[%clk 01:13:14]} {[%emt 00:06:27]} Bg4 {[%clk 01:28:48]}
{[%emt 00:00:07]} 13. Be3 {[%clk 01:12:57]} {[%emt 00:00:47]} exd4 {[%clk
01:29:05]} {[%emt 00:00:13]} 14. Bxd4 {[%clk 01:13:14]} {[%emt 00:00:13]} Rfe8
{[%clk 01:29:26]} {[%emt 00:00:09]} 15. Qc2 {[%clk 01:11:59]} {[%emt 00:01:44]}
Bc5 {[%clk 01:20:07]} {[%emt 00:09:50]} 16. Bxc5 {[%clk 01:01:10]} {[%emt
00:11:20]} Nxc5 {[%clk 01:20:04]} {[%emt 00:00:33]} 17. Nh4 {[%clk 01:01:22]}
{[%emt 00:00:17]} Rad8 {[%clk 01:11:27]} {[%emt 00:09:07]} 18. h3 {[%clk
00:59:11]} {[%emt 00:02:42]} Be6 {[%clk 00:59:22]} {[%emt 00:12:36]} 19. Rad1
{[%clk 00:57:24]} {[%emt 00:02:16]} a5 {[%clk 00:49:17]} {[%emt 00:10:35]} 20.
Rxd8 {[%clk 00:53:06]} {[%emt 00:04:48]} Rxd8 {[%clk 00:49:29]} {[%emt
00:00:19]} 21. Rd1 {[%clk 00:53:12]} {[%emt 00:00:23]} Rxd1+ {[%clk 00:47:33]}
{[%emt 00:02:27]} 22. Qxd1 {[%clk 00:53:16]} {[%emt 00:00:25]} Qd7 {[%clk
00:43:52]} {[%emt 00:04:12]} 23. Qxd7 {[%clk 00:34:21]} {[%emt 00:19:25]} Nfxd7
{[%clk 00:44:18]} {[%emt 00:00:04]} 24. b3 {[%clk 00:34:03]} {[%emt 00:00:48]}
Ne5 {[%clk 00:24:57]} {[%emt 00:19:51]} 25. f4 {[%clk 00:26:31]} {[%emt
00:08:02]} g5 {[%clk 00:24:21]} {[%emt 00:01:06]} 26. fxg5 {[%clk 00:23:01]}
{[%emt 00:03:59]} b5 {[%clk 00:18:15]} {[%emt 00:06:37]} 27. Nf3 {[%clk
00:16:17]} {[%emt 00:07:14]} b4 {[%clk 00:16:50]} {[%emt 00:01:56]} 28. Ne2
{[%clk 00:14:44]} {[%emt 00:02:03]} Nxf3+ {[%clk 00:14:51]} {[%emt 00:02:29]}
29. Bxf3 {[%clk 00:15:11]} {[%emt 00:00:03]} a4 {[%clk 00:12:39]} {[%emt
00:02:42]} 30. Nd4 {[%clk 00:14:25]} {[%emt 00:01:16]} axb3 {[%clk 00:11:00]}
{[%emt 00:02:10]} 31. axb3 {[%clk 00:11:51]} {[%emt 00:03:04]} Nxb3 {[%clk
00:11:10]} {[%emt 00:00:20]} 32. Nxc6 {[%clk 00:07:40]} {[%emt 00:04:40]} Nd2
{[%clk 00:11:00]} {[%emt 00:00:40]} 33. Bd1 {[%clk 00:05:50]} {[%emt 00:02:20]}
b3 {[%clk 00:11:25]} {[%emt 00:00:06]} 34. Nd4 {[%clk 00:04:44]} {[%emt
00:01:36]} b2 {[%clk 00:11:39]} {[%emt 00:00:16]} 35. Bc2 {[%clk 00:05:08]}
{[%emt 00:00:06]} Bxh3 {[%clk 00:11:49]} {[%emt 00:00:20]} 36. Kf2 {[%clk
00:04:51]} {[%emt 00:00:47]} b1=Q {[%clk 00:08:27]} {[%emt 00:03:51]} 37. Bxb1
{[%clk 00:05:15]} {[%emt 00:00:07]} Nxb1 {[%clk 00:08:55]} {[%emt 00:00:02]} 38.
Ke3 {[%clk 00:05:22]} {[%emt 00:00:22]} Nc3 {[%clk 00:07:57]} {[%emt 00:01:28]}
39. Nf5 {[%clk 00:00:51]} {[%emt 00:05:00]} Kf8 {[%clk 00:01:32]} {[%emt
00:06:56]} 40. Kf4 {[%clk 00:00:44]} {[%emt 00:00:38]} Bg2 {[%clk 00:00:53]}
{[%emt 00:01:08]} 41. e5 {[%clk 00:26:16]} {[%emt 00:04:58]} Nd5+ {[%clk
00:29:45]} {[%emt 00:01:38]} 42. Kg4 {[%clk 00:26:30]} {[%emt 00:00:17]} Be4
{[%clk 00:29:48]} {[%emt 00:00:26]} 43. Nd4 {[%clk 00:22:34]} {[%emt 00:04:26]}
Nc7 {[%clk 00:29:41]} {[%emt 00:00:37]} 44. Ne2 {[%clk 00:19:35]} {[%emt
00:03:29]} Ne6 {[%clk 00:29:16]} {[%emt 00:00:55]} 45. Nf4 {[%clk 00:19:38]}
{[%emt 00:00:27]} Ke7 {[%clk 00:28:44]} {[%emt 00:01:03]} 46. Nh5 {[%clk
00:17:40]} {[%emt 00:02:27]} Bg6 {[%clk 00:29:07]} {[%emt 00:00:07]} 47. Nf6
{[%clk 00:18:05]} {[%emt 00:00:05]} Nc5 {[%clk 00:29:28]} {[%emt 00:00:09]} 0-1

[Event "21th Rochefort Chess Festival - Masters"]
[Site "Rochefort, France"]
[Date "2023.02.16"]
[Round "8.3"]
[White "Ghazarian, Kirk"]
[Black "Maksimenko, Andrei"]
[Result "1/2-1/2"]
[TimeControl "1h30 + [30'']"]
[WhiteElo "2471"]
[BlackElo "2426"]

1. d4 {[%clk 01:30:43]} {[%emt 00:00:16]} d5 {[%clk 01:30:55]} {[%emt
00:00:05]} 2. c4 {[%clk 01:31:02]} {[%emt 00:00:10]} c6 {[%clk 01:31:19]}
{[%emt 00:00:06]} 3. Nf3 {[%clk 01:31:25]} {[%emt 00:00:07]} Nf6 {[%clk
01:31:43]} {[%emt 00:00:05]} 4. Nc3 {[%clk 01:31:43]} {[%emt 00:00:12]} dxc4
{[%clk 01:32:07]} {[%emt 00:00:06]} 5. a4 {[%clk 01:32:05]} {[%emt 00:00:08]}
e6 {[%clk 01:32:31]} {[%emt 00:00:06]} 6. e3 {[%clk 01:32:09]} {[%emt
00:00:27]} c5 {[%clk 01:32:56]} {[%emt 00:00:05]} 7. Bxc4 {[%clk 01:32:27]}
{[%emt 00:00:12]} Nc6 {[%clk 01:33:22]} {[%emt 00:00:05]} 8. O-O {[%clk
01:32:19]} {[%emt 00:00:38]} Be7 {[%clk 01:33:45]} {[%emt 00:00:06]} 9. Qe2
{[%clk 01:26:38]} {[%emt 00:06:12]} O-O {[%clk 01:34:08]} {[%emt 00:00:07]} 10.
dxc5 {[%clk 01:22:03]} {[%emt 00:05:05]} Bxc5 {[%clk 01:34:32]} {[%emt
00:00:05]} 11. e4 {[%clk 01:21:14]} {[%emt 00:01:20]} e5 {[%clk 01:34:54]}
{[%emt 00:00:07]} 12. Be3 {[%clk 01:12:05]} {[%emt 00:09:39]} Bxe3 {[%clk
01:31:25]} {[%emt 00:03:58]} 13. Qxe3 {[%clk 01:07:59]} {[%emt 00:04:37]} Nd4
{[%clk 01:08:32]} {[%emt 00:23:24]} 14. Rac1 {[%clk 00:57:42]} {[%emt
00:10:47]} Nxf3+ {[%clk 01:06:13]} {[%emt 00:02:49]} 15. Qxf3 {[%clk 00:57:32]}
{[%emt 00:00:39]} Qb6 {[%clk 00:53:37]} {[%emt 00:13:07]} 16. Nd5 {[%clk
00:48:02]} {[%emt 00:10:01]} Nxd5 {[%clk 00:53:43]} {[%emt 00:00:23]} 17. Bxd5
{[%clk 00:48:28]} {[%emt 00:00:04]} Be6 {[%clk 00:54:02]} {[%emt 00:00:11]} 18.
Bxe6 {[%clk 00:47:30]} {[%emt 00:01:27]} Qxe6 {[%clk 00:40:51]} {[%emt
00:13:41]} 19. Rc7 {[%clk 00:46:50]} {[%emt 00:01:11]} b6 {[%clk 00:19:06]}
{[%emt 00:22:15]} 20. Rfc1 {[%clk 00:38:07]} {[%emt 00:09:12]} Rac8 {[%clk
00:10:46]} {[%emt 00:08:50]} 21. g3 {[%clk 00:33:49]} {[%emt 00:04:48]} f6
{[%clk 00:08:22]} {[%emt 00:02:54]} 22. Kg2 {[%clk 00:23:03]} {[%emt 00:11:17]}
Rxc7 {[%clk 00:08:24]} {[%emt 00:00:28]} 23. Rxc7 {[%clk 00:23:31]} {[%emt
00:00:02]} Rf7 {[%clk 00:08:31]} {[%emt 00:00:23]} 24. Rc3 {[%clk 00:23:04]}
{[%emt 00:00:57]} h6 {[%clk 00:08:03]} {[%emt 00:00:57]} 25. Qh5 {[%clk
00:20:37]} {[%emt 00:02:57]} Qd7 {[%clk 00:06:25]} {[%emt 00:02:08]} 26. Qg6
{[%clk 00:19:57]} {[%emt 00:01:10]} Rf8 {[%clk 00:06:06]} {[%emt 00:00:49]} 27.
b3 {[%clk 00:09:58]} {[%emt 00:10:29]} Rc8 {[%clk 00:06:21]} {[%emt 00:00:14]}
1/2-1/2



[ePGN "0.1;DGT LiveChess/2.2.5"]